bitfinex/quotes_BTCUSD_20240718
["timestamp","ask_amount","ask_price","bid_price","bid_amount"]
[1721312483017,0.04982,64395.0,64393.0,0.15438174]
[1721312483232,0.04982,64388.0,64387.0,0.15531]
[1721312483469,0.07717479,64396.0,64386.0,0.155311]
[1721312483470,0.04982,64387.0,64386.0,0.155311]
[1721312483692,0.12699479,64387.0,64386.0,0.155311]
[1721312483910,0.12699479,64387.0,64381.0,0.0827]
[1721312484129,0.12699479,64387.0,64374.0,0.155342]
[1721312484130,0.04982,64375.0,64374.0,0.155342]
[1721312484361,0.04982,64366.0,64365.0,0.310727]
[1721312484586,0.002644,64377.0,64376.0,0.466011]
[1721312484826,0.09567258,64384.0,64383.0,0.15532]
[1721312485085,0.09567258,64384.0,64376.0,0.30971874]
[1721312485086,0.04982,64377.0,64376.0,0.30971874]
[1721312485315,0.04982,64378.0,64377.0,0.466003]
[1721312485532,0.04982,64376.0,64374.0,0.310683]
[1721312485768,0.04982,64376.0,64375.0,0.62039974]
[1721312485979,0.04982,64378.0,64377.0,0.155334]
[1721312486205,0.04982,64378.0,64377.0,0.466003]
[1721312486642,0.04982,64378.0,64377.0,0.55910937]
[1721312486874,0.04982,64382.0,64381.0,0.465975]
[1721312487099,0.04982,64386.0,64385.0,0.155315]
[1721312487316,0.04982,64386.0,64383.0,0.465955]
[1721312487557,0.07717479,64387.0,64380.0,0.465979]
[1721312487558,0.04982,64381.0,64380.0,0.465979]
[1721312487779,0.310608,64390.0,64380.0,0.465979]
[1721312487780,0.052464,64386.0,64385.0,0.155315]
[1721312488023,0.04982,64386.0,64381.0,0.310648]
[1721312488264,0.04982,64386.0,64385.0,0.16132081]
[1721312488475,0.04982,64386.0,64385.0,0.155315]
[1721312488685,0.04982,64386.0,64385.0,0.17839172]
[1721312489411,0.04982,64386.0,64385.0,0.47195181]
[1721312489632,0.04982,64386.0,64385.0,0.00600581]
[1721312490070,0.04982,64379.0,64378.0,0.465997]
[1721312490284,0.04982,64382.0,64381.0,0.155325]
[1721312490505,0.04982,64382.0,64378.0,0.00602496]
[1721312490506,0.51581,64379.0,64378.0,0.00602496]
[1721312490752,0.51581,64379.0,64359.0,0.0762]
[1721312490753,0.04982,64370.0,64366.0,0.310718]
[1721312490981,0.002644,64369.0,64368.0,0.466069]
[1721312491205,0.04982,64370.0,64369.0,0.155354]
[1721312491417,0.04982,64370.0,64369.0,0.62044374]
[1721312491623,0.04982,64374.0,64369.0,0.15438174]
[1721312491836,0.04982,64374.0,64373.0,0.466033]
[1721312492054,0.04982,64374.0,64373.0,0.62041474]
[1721312492284,0.04982,64374.0,64373.0,0.30972574]
[1721312492937,0.04982,64374.0,64373.0,0.15438174]
[1721312493153,0.04982,64365.0,64359.0,0.0762]
[1721312493376,0.313317,64377.0,64361.0,0.466117]
[1721312493377,0.04982,64362.0,64361.0,0.466117]
[1721312493592,0.04982,64365.0,64364.0,0.155366]
[1721312493829,0.04982,64365.0,64364.0,0.30974774]
[1721312494037,0.04982,64365.0,64364.0,0.41049021]
[1721312494481,0.04850477,64378.0,64364.0,0.25512421]
[1721312494482,0.052464,64372.0,64364.0,0.25512421]
[1721312494689,0.04982,64372.0,64371.0,0.466047]
[1721312494910,0.04982,64372.0,64371.0,0.62042874]
[1721312495548,0.04982,64372.0,64371.0,0.30973074]
[1721312495772,0.04982,64372.0,64371.0,0.15438174]
[1721312495982,0.002644,64378.0,64361.0,0.310745]
[1721312495983,0.04982,64365.0,64361.0,0.310745]
[1721312496218,0.04982,64364.0,64363.0,0.155367]
[1721312496484,0.04982,64365.0,64364.0,0.466098]
[1721312496706,0.04982,64365.0,64364.0,0.62047974]
[1721312496931,0.12699479,64367.0,64364.0,0.59703091]
[1721312497130,0.04982,64366.0,64365.0,0.15438174]
[1721312497364,0.21647479,64367.0,64358.0,0.000913]
[1721312497365,0.04982,64360.0,64358.0,0.000913]
[1721312497585,0.14087479,64367.0,64358.0,0.156293]
[1721312497586,0.04982,64359.0,64358.0,0.156293]
[1721312497805,0.04982,64362.0,64358.0,0.51285494]
[1721312498019,0.04982,64362.0,64361.0,0.310747]
[1721312498299,0.04982,64362.0,64361.0,0.62050174]
[1721312498471,0.04982,64362.0,64361.0,0.30975474]
[1721312499120,0.04982,64362.0,64358.0,0.0477122]
[1721312499121,0.04982,64359.0,64358.0,0.000913]
[1721312499334,0.04982,64369.0,64358.0,0.15529474]
[1721312499547,0.04982,64365.0,64359.0,0.48386352]
[1721312499755,0.052464,64368.0,64364.0,0.310732]
[1721312499961,0.04982,64370.0,64369.0,0.155354]
[1721312500243,0.04982,64368.0,64365.0,0.18545494]
[1721312500457,0.04982,64366.0,64365.0,0.30974474]
[1721312500667,0.04982,64366.0,64365.0,0.62047174]
[1721312500892,0.04982,64366.0,64365.0,0.15538174]
[1721312501090,0.205181,64366.0,64365.0,0.001]
[1721312501976,0.515904,64366.0,64365.0,0.001]
[1721312502229,1.27815,64366.0,64365.0,0.001]
[1721312502446,0.972427,64366.0,64365.0,0.001]
[1721312502652,0.04982,64359.0,64352.0,0.310786]
[1721312502860,0.04982,64359.0,64355.0,0.155386]
[1721312503073,0.205198,64359.0,64358.0,0.00703673]
[1721312503285,0.456525,64366.0,64359.0,0.155378]
[1721312503286,0.04982,64360.0,64359.0,0.155378]
[1721312503508,0.04982,64361.0,64360.0,0.155376]
[1721312503715,0.04982,64361.0,64360.0,0.15438174]
[1721312503933,0.04982,64361.0,64360.0,0.16051336]
[1721312505051,0.04982,64361.0,64360.0,0.31588936]
[1721312505732,0.05382,64361.0,64360.0,0.31588936]
[1721312505950,0.05382,64361.0,64360.0,0.16051336]
[1721312506190,0.05382,64361.0,64360.0,0.31588936]
[1721312506404,0.05482,64361.0,64360.0,0.31588936]
[1721312506643,0.005,64361.0,64360.0,1.0313183]
[1721312506862,0.005,64361.0,64360.0,0.7205663]
[1721312507272,0.01,64361.0,64360.0,0.7205663]
[1721312507473,0.04982,64364.0,64362.0,0.15537]
[1721312507692,0.04982,64364.0,64363.0,0.15438174]
[1721312507922,0.04982,64364.0,64363.0,0.16050358]
[1721312508346,0.205186,64364.0,64363.0,0.16050358]
[1721312508574,0.205186,64364.0,64363.0,0.00612184]
[1721312508795,0.04982,64362.0,64361.0,0.62050174]
[1721312509018,0.04982,64362.0,64361.0,0.62662905]
[1721312509233,0.04982,64362.0,64361.0,0.31588205]
[1721312509467,0.04982,64362.0,64361.0,0.16050905]
[1721312509670,0.04982,64362.0,64361.0,0.31588205]
[1721312510107,0.04982,64362.0,64361.0,0.16050905]
[1721312511151,0.04982,64362.0,64361.0,0.00612731]
[1721312511364,0.205191,64362.0,64361.0,0.00612731]
[1721312511597,0.04982,64361.0,64360.0,0.000913]
[1721312511834,0.04982,64361.0,64360.0,0.16142534]
[1721312512480,0.05482,64361.0,64360.0,0.16142534]
[1721312513158,0.005,64361.0,64360.0,1.01678437]
[1721312513367,0.00450511,64361.0,64360.0,1.32753637]
[1721312514052,0.00450511,64361.0,64360.0,1.01678437]
[1721312514273,0.05432511,64361.0,64360.0,0.39528037]
[1721312514495,0.05432511,64361.0,64360.0,0.16142534]
[1721312514718,0.05432511,64361.0,64360.0,0.62755334]
[1721312515143,0.00450511,64361.0,64360.0,0.31680134]
[1721312515403,0.00450511,64361.0,64360.0,1.08010534]
[1721312515609,0.00450511,64361.0,64360.0,1.18829957]
[1721312515822,0.04982,64370.0,64369.0,0.466062]
[1721312516032,0.04982,64370.0,64369.0,0.30973574]
[1721312516251,0.04982,64370.0,64369.0,0.62669833]
[1721312516489,0.04982,64370.0,64369.0,0.40973166]
[1721312516733,0.053294,64374.0,64371.0,0.310698]
[1721312516949,0.05065,64374.0,64372.0,0.155345]
[1721312517174,0.00083,64374.0,64373.0,0.93110374]
[1721312517408,0.00083,64374.0,64373.0,1.24179274]
[1721312517663,0.00083,64374.0,64373.0,1.24803045]
[1721312518570,0.00083,64374.0,64373.0,0.62665245]
[1721312518571,0.05865,64374.0,64373.0,0.62665245]
[1721312518783,0.00883,64374.0,64373.0,0.93734145]
[1721312519027,0.00883,64374.0,64373.0,1.0311756]
[1721312519424,0.05865,64374.0,64373.0,1.0311756]
[1721312519649,0.00883,64374.0,64373.0,1.0311756]
[1721312519888,0.05865,64374.0,64373.0,0.7204866]
[1721312520125,0.05865,64374.0,64373.0,1.0311756]
[1721312520375,0.05865,64374.0,64373.0,0.31596345]
[1721312520876,0.05865,64374.0,64373.0,0.62665245]
[1721312521092,0.00883,64374.0,64373.0,0.93734145]
[1721312521814,0.00083,64374.0,64373.0,0.93734145]
[1721312522056,0.00083,64374.0,64373.0,1.8272231]
[1721312522554,0.00083,64374.0,64373.0,1.2118451]
[1721312522800,0.00083,64374.0,64373.0,1.1476451]
[1721312523291,0.00083,64374.0,64373.0,1.4583341]
[1721312523520,0.00083,64374.0,64373.0,1.4523341]
[1721312523759,0.00083,64374.0,64373.0,1.1416451]
[1721312524219,0.00083,64374.0,64373.0,1.4523341]
[1721312524476,0.05065,64374.0,64373.0,1.0621451]
[1721312524725,0.00083,64374.0,64373.0,1.0621451]
[1721312525191,0.00083,64374.0,64373.0,1.4510341]
[1721312525889,0.00083,64374.0,64373.0,1.7617231]
[1721312526120,0.00083,64374.0,64373.0,1.8246231]
[1721312526864,0.00183,64374.0,64373.0,1.1473451]
[1721312527137,0.00183,64374.0,64373.0,1.0691451]
[1721312527366,0.00183,64374.0,64373.0,1.25503045]
[1721312528362,0.00083,64374.0,64373.0,1.24803045]
[1721312528623,0.00183,64374.0,64373.0,0.94134145]
[1721312528976,0.00183,64374.0,64373.0,1.25203045]
[1721312529155,0.002644,64384.0,64383.0,1.087243]
[1721312529376,0.002644,64391.0,64390.0,0.46591]
[1721312529621,0.11470166,64395.0,64390.0,0.46591]
[1721312529622,0.002644,64394.0,64393.0,0.465888]
[1721312529824,0.11470166,64395.0,64394.0,0.46588]
[1721312530034,0.11470166,64395.0,64394.0,1.24143574]
[1721312530251,0.11470166,64395.0,64394.0,1.24758444]
[1721312530684,0.11070166,64395.0,64394.0,1.24758444]
[1721312530962,0.11070166,64395.0,64394.0,1.40193401]
[1721312532487,0.11070166,64395.0,64394.0,1.79492101]
[1721312534261,0.11170166,64395.0,64394.0,1.80492101]
[1721312534480,0.11170166,64395.0,64394.0,1.81392101]
[1721312535453,0.11170166,64395.0,64394.0,2.12450801]
[1721312536561,0.11070166,64395.0,64394.0,2.11450801]
[1721312536822,0.00083,64408.0,64394.0,2.11450801]
[1721312536823,0.00083,64408.0,64407.0,1.086837]
[1721312537049,0.00083,64408.0,64407.0,1.24121874]
[1721312537272,0.00083,64408.0,64407.0,1.24732091]
[1721312537729,0.36117,64408.0,64407.0,0.00610217]
[1721312537968,0.06503,64408.0,64394.0,0.0914]
[1721312538190,0.07717479,64407.0,64406.0,0.155265]
[1721312538416,0.00083,64408.0,64407.0,0.465787]
[1721312538763,0.00083,64408.0,64407.0,0.62416874]
[1721312538990,0.00083,64408.0,64407.0,1.03839494]
[1721312539215,0.00083,64408.0,64407.0,1.34891994]
[1721312540888,0.00083,64408.0,64407.0,1.40991994]
[1721312541139,0.00083,64408.0,64407.0,1.34891994]
[1721312541592,0.00083,64408.0,64407.0,1.34491994]
[1721312541826,0.00083,64408.0,64407.0,1.03439494]
[1721312542058,0.01736304,64411.0,64407.0,0.56860794]
[1721312542320,0.01736304,64413.0,64408.0,0.21124253]
[1721312542570,0.07717479,64414.0,64413.0,0.465744]
[1721312542800,0.01736304,64417.0,64414.0,0.31049]
[1721312543069,0.07717479,64416.0,64415.0,0.69764751]
[1721312543333,0.002644,64421.0,64420.0,0.155231]
[1721312543573,0.00084,64425.0,64424.0,0.155221]
[1721312543814,0.00084,64425.0,64424.0,0.30960274]
[1721312544028,0.00084,64425.0,64424.0,0.65661904]
[1721312544244,0.00084,64425.0,64424.0,0.96706204]
[1721312545229,0.01820304,64425.0,64424.0,0.96706204]
[1721312545472,0.01820304,64425.0,64424.0,0.65661904]
[1721312546625,0.48386004,64425.0,64424.0,0.00561303]
[1721312546847,0.93589804,64425.0,64424.0,0.00561303]
[1721312547140,0.01736304,64414.0,64413.0,0.155247]
[1721312547362,0.155236,64418.0,64411.0,0.155251]
[1721312547363,0.01736304,64412.0,64411.0,0.155251]
[1721312547585,0.07717479,64413.0,64402.0,0.155274]
[1721312547586,0.01736304,64403.0,64402.0,0.155274]
[1721312547807,0.01736304,64403.0,64402.0,0.465823]
[1721312548039,0.01736304,64403.0,64402.0,0.155274]
[1721312548283,0.01736304,64403.0,64402.0,0.47149312]
[1721312548536,0.01736304,64403.0,64402.0,0.00567012]
[1721312548790,0.01736304,64403.0,64402.0,0.39353327]
[1721312549049,0.01736304,64403.0,64402.0,0.16005186]
[1721312549278,0.79372304,64403.0,64402.0,0.00567012]
[1721312549780,0.01736304,64391.0,64390.0,0.155303]
[1721312550004,0.01736304,64392.0,64391.0,0.4814333]
[1721312550193,0.01736304,64392.0,64391.0,0.63581504]
[1721312550463,0.01736304,64393.0,64391.0,0.16991204]
[1721312550653,0.01736304,64393.0,64392.0,0.17137294]
[1721312550909,0.01736304,64393.0,64392.0,0.15438174]
[1721312551154,0.01736304,64394.0,64392.0,0.30967974]
[1721312551432,0.04833396,64418.0,64398.0,0.310568]
[1721312551433,0.01736304,64401.0,64398.0,0.310568]
[1721312551685,0.01736304,64402.0,64399.0,0.15748711]
[1721312551905,0.07717479,64406.0,64401.0,0.155277]
[1721312551906,0.01736304,64404.0,64401.0,0.155277]
[1721312552138,0.01736304,64405.0,64404.0,0.465808]
[1721312552364,0.01736304,64406.0,64405.0,0.155267]
[1721312552787,0.01736304,64405.0,64404.0,0.09495956]
[1721312553014,0.01736304,64405.0,64404.0,0.15438174]
[1721312553689,0.01736304,64406.0,64404.0,0.15438174]
[1721312553941,0.01736304,64406.0,64405.0,0.62018274]
[1721312554168,0.01736304,64407.0,64406.0,0.155265]
[1721312554373,0.01736304,64407.0,64406.0,0.30964674]
[1721312554586,0.01736304,64407.0,64406.0,0.15438174]
[1721312555768,0.01736304,64401.0,64400.0,0.01574871]
[1721312556026,0.24981483,64401.0,64400.0,0.15438174]
[1721312556264,0.09453783,64401.0,64400.0,0.15438174]
[1721312556504,0.24981483,64401.0,64400.0,0.16007132]
[1721312556998,0.56036883,64401.0,64400.0,0.00568958]
[1721312557219,0.24981483,64401.0,64400.0,0.00568958]
[1721312557445,0.01736304,64397.0,64396.0,0.155288]
[1721312557677,0.01736304,64397.0,64396.0,0.15438174]
[1721312557992,0.01736304,64397.0,64396.0,0.16008225]
[1721312558632,0.01736304,64397.0,64383.0,0.310637]
[1721312558894,0.01736304,64395.0,64394.0,0.155293]
[1721312559158,0.01736304,64395.0,64394.0,0.62026174]
[1721312559404,0.02000704,64399.0,64394.0,0.24746761]
[1721312559639,0.01736304,64395.0,64394.0,0.24746761]
[1721312559868,0.01736304,64395.0,64394.0,0.15438174]
[1721312560626,0.17265504,64395.0,64374.0,0.310682]
[1721312560891,0.372576,64397.0,64374.0,0.310682]
[1721312560892,0.01736304,64389.0,64388.0,0.465924]
[1721312561109,0.01736304,64391.0,64389.0,0.2018954]
[1721312561364,0.01736304,64391.0,64390.0,0.15438174]
[1721312562521,0.01736304,64392.0,64390.0,0.15438174]
[1721312562732,0.01736304,64394.0,64390.0,0.30968474]
[1721312562949,0.002644,64395.0,64391.0,0.09775141]
[1721312562950,0.01736304,64395.0,64391.0,0.09775141]
[1721312563162,0.01736304,64395.0,64392.0,0.15438174]
[1721312563888,0.002644,64396.0,64393.0,0.00310552]
[1721312564100,0.01736304,64399.0,64397.0,0.155286]
[1721312564363,0.01736304,64399.0,64397.0,0.15438174]
[1721312564590,0.09453783,64398.0,64397.0,0.15438174]
[1721312564996,0.01736304,64399.0,64397.0,0.15438174]
[1721312565218,0.002644,64398.0,64397.0,0.15438174]
[1721312565435,0.01736304,64399.0,64397.0,0.15438174]
[1721312565876,0.02000704,64401.0,64397.0,0.15438174]
[1721312566123,0.01736304,64398.0,64397.0,0.15438174]
[1721312566777,0.01736304,64391.0,64390.0,0.01]
[1721312567000,0.01736304,64391.0,64390.0,0.16438174]
[1721312567217,0.01736304,64392.0,64390.0,0.15438174]
[1721312567446,0.01736304,64393.0,64391.0,0.15438174]
[1721312567663,0.02000704,64395.0,64391.0,0.30968174]
[1721312567877,0.01736304,64395.0,64391.0,0.30968174]
[1721312568092,0.01736304,64395.0,64392.0,0.09929316]
[1721312568345,0.01736304,64395.0,64392.0,0.2536749]
[1721312568569,0.02000704,64397.0,64392.0,0.4089729]
[1721312568809,0.01736304,64397.0,64392.0,0.4089729]
[1721312569278,0.01736304,64397.0,64355.0,0.04638288]
[1721312569279,0.01736304,64377.0,64361.0,0.000913]
[1721312569527,0.01736304,64365.0,64364.0,0.46304871]
[1721312569747,0.01736304,64369.0,64364.0,0.15438174]
[1721312569953,0.01736304,64367.0,64364.0,0.15438174]
[1721312570410,0.01736304,64367.0,64361.0,0.000913]
[1721312570411,0.01736304,64362.0,64361.0,0.000913]
[1721312570662,0.48347604,64362.0,64361.0,0.000913]
[1721312570887,0.17273404,64362.0,64361.0,0.000913]
[1721312571360,0.48347604,64362.0,64361.0,0.000913]
[1721312572069,0.17273404,64362.0,64361.0,0.000913]
[1721312572294,0.01736304,64362.0,64361.0,0.000913]
[1721312572565,0.17273404,64362.0,64361.0,0.000913]
[1721312573296,0.48347604,64362.0,64361.0,0.000913]
[1721312575074,0.79821804,64362.0,64361.0,0.000913]
[1721312575526,0.79621804,64362.0,64361.0,0.000913]
[1721312576259,0.80321804,64362.0,64361.0,0.001913]
[1721312576711,1.11396004,64362.0,64361.0,0.001913]
[1721312577463,1.25346004,64362.0,64361.0,0.001913]
[1721312577899,1.25146004,64362.0,64361.0,0.001913]
[1721312578564,1.25246004,64362.0,64361.0,0.001913]
[1721312579306,1.33966826,64362.0,64361.0,0.001913]
[1721312579529,1.33266826,64362.0,64361.0,0.000913]
[1721312579762,1.24546004,64362.0,64361.0,0.000913]
[1721312580243,1.25246004,64362.0,64361.0,0.001913]
[1721312580499,0.86351804,64362.0,64361.0,0.001913]
[1721312581707,0.008,64362.0,64361.0,0.15629474]
[1721312581924,0.008,64362.0,64361.0,0.20327621]
[1721312582146,0.02536304,64362.0,64361.0,0.20838143]
[1721312582370,0.02536304,64362.0,64361.0,0.00701822]
[1721312582588,0.18073404,64362.0,64361.0,0.00701822]
[1721312582812,0.80221804,64362.0,64361.0,0.00701822]
[1721312583073,0.80221804,64362.0,64361.0,0.001913]
[1721312584475,1.19176004,64362.0,64361.0,0.001913]
[1721312584940,0.88101804,64362.0,64361.0,0.001913]
[1721312586955,0.01736304,64351.0,64350.0,0.155062]
[1721312587164,0.01736304,64351.0,64350.0,0.15438174]
[1721312587398,0.01736304,64351.0,64350.0,0.15951362]
[1721312588931,0.01836304,64351.0,64350.0,0.16551362]
[1721312589143,0.001,64351.0,64350.0,0.16551362]
[1721312589564,0.01836304,64351.0,64350.0,0.22960548]
[1721312589986,0.001,64351.0,64350.0,0.69891312]
[1721312590206,0.001,64351.0,64350.0,1.00971312]
[1721312590641,0.001,64351.0,64350.0,1.32651312]
[1721312590901,0.001,64351.0,64350.0,1.15590548]
[1721312591136,0.01836304,64351.0,64350.0,0.47021362]
[1721312591354,0.01836304,64351.0,64350.0,0.71901362]
[1721312591559,0.001,64351.0,64350.0,1.02981362]
[1721312591811,0.001,64351.0,64350.0,0.63771362]
[1721312592267,0.001,64351.0,64350.0,0.17151362]
[1721312592522,0.01836304,64351.0,64350.0,0.17151362]
[1721312592730,0.001,64351.0,64350.0,0.17151362]
[1721312592954,0.001,64351.0,64350.0,0.32691362]
[1721312593170,0.01836304,64351.0,64350.0,0.17151362]
[1721312594464,0.001,64351.0,64350.0,0.17151362]
[1721312594694,0.001,64351.0,64350.0,0.32691362]
[1721312595145,0.001,64351.0,64350.0,1.04428638]
[1721312595363,0.001,64351.0,64350.0,1.39781362]
[1721312596303,0.001,64351.0,64350.0,1.70861362]
[1721312597605,0.001,64351.0,64350.0,1.70261362]
[1721312598153,0.002644,64365.0,64364.0,0.466098]
[1721312598366,0.002644,64365.0,64364.0,0.69816334]
[1721312598609,0.0637,64375.0,64364.0,0.69816334]
[1721312598610,0.09453783,64373.0,64369.0,0.155353]
[1721312598834,0.07717479,64380.0,64370.0,0.15748828]
[1721312599066,0.07717479,64380.0,64379.0,0.46599]
[1721312599290,0.07717479,64380.0,64379.0,0.93103174]
[1721312599511,0.07717479,64380.0,64379.0,0.93607503]
[1721312599968,0.07717479,64387.0,64379.0,0.93607503]
[1721312599969,0.07717479,64387.0,64386.0,0.155313]
[1721312600196,0.07717479,64387.0,64386.0,0.30969474]
[1721312600436,0.07717479,64387.0,64386.0,0.00502414]
[1721312600655,0.24984783,64387.0,64386.0,0.00502414]
[1721312600873,0.01736304,64374.0,64371.0,0.01574883]
[1721312601099,0.07717479,64387.0,64372.0,0.15438174]
[1721312601100,0.01736304,64373.0,64372.0,0.15438174]
[1721312601319,0.01736304,64374.0,64372.0,0.31479018]
[1721312601547,0.01736304,64380.0,64378.0,0.155332]
[1721312601766,0.44803017,64399.0,64372.0,0.20148216]
[1721312601767,0.01736304,64382.0,64379.0,0.15438174]
[1721312601993,0.09453783,64387.0,64384.0,0.155317]
[1721312602204,0.07717479,64387.0,64386.0,0.155313]
[1721312602455,0.09453783,64387.0,64386.0,0.30969474]
[1721312602707,0.09453783,64387.0,64386.0,0.15940588]
[1721312602914,0.09453783,64387.0,64386.0,0.00502414]
[1721312602915,0.88080801,64387.0,64386.0,0.00502414]
[1721312603122,0.87108983,64387.0,64386.0,0.00502414]
[1721312603330,0.01736304,64372.0,64371.0,0.161347]
[1721312603543,0.01736304,64372.0,64371.0,0.31572874]
[1721312603764,0.01736304,64372.0,64371.0,0.32077435]
[1721312604042,0.01736304,64376.0,64372.0,0.155345]
[1721312604252,0.01736304,64372.0,64371.0,0.01104561]
[1721312604484,0.01736304,64372.0,64371.0,0.006]
[1721312604485,0.17271004,64372.0,64371.0,0.006]
[1721312604699,0.48340404,64372.0,64371.0,0.006]
[1721312604917,0.88732232,64372.0,64371.0,0.006]
[1721312606407,0.88732232,64372.0,64371.0,0.015]
[1721312606848,0.17271004,64372.0,64371.0,0.009]
[1721312607058,0.002644,64372.0,64371.0,0.009]
[1721312607268,0.01736304,64374.0,64371.0,0.31873074]
[1721312607476,0.01736304,64374.0,64372.0,0.15748832]
[1721312607687,0.310664,64379.0,64372.0,0.15748832]
[1721312607688,0.09453783,64373.0,64372.0,0.15438174]
[1721312608121,0.07717479,64373.0,64372.0,0.15438174]
[1721312608337,0.09453783,64373.0,64372.0,0.15942731]
[1721312608549,0.09453783,64373.0,64372.0,0.00504557]
[1721312608774,0.09453783,64373.0,64372.0,0.00468842]
[1721312608961,0.09453783,64373.0,64368.0,0.155356]
[1721312609171,0.01736304,64370.0,64369.0,0.20098964]
[1721312609387,0.07717479,64373.0,64369.0,0.20098964]
[1721312609388,0.09453783,64373.0,64369.0,0.20568627]
[1721312609602,0.01736304,64374.0,64371.0,0.155348]
[1721312609807,0.01736304,64374.0,64371.0,0.30972974]
[1721312610085,0.01736304,64379.0,64372.0,0.15438174]
[1721312610308,0.07717479,64380.0,64372.0,0.15438174]
[1721312610309,0.002644,64378.0,64373.0,0.155344]
[1721312610523,0.23250279,64380.0,64374.0,0.15438174]
[1721312610524,0.002644,64379.0,64374.0,0.15438174]
[1721312610754,0.01736304,64376.0,64374.0,0.26257521]
[1721312611208,0.01736304,64376.0,64374.0,0.25757521]
[1721312611460,0.01736304,64377.0,64374.0,0.25757521]
[1721312611982,0.01736304,64376.0,64375.0,0.08228615]
[1721312612252,0.002644,64378.0,64374.0,0.00468742]
[1721312612253,0.01736304,64375.0,64374.0,0.00468742]
[1721312612491,0.17271004,64372.0,64371.0,0.001]
[1721312612715,0.09453783,64372.0,64371.0,0.001]
[1721312612956,0.01736304,64372.0,64371.0,0.15538174]
[1721312613180,0.01736304,64372.0,64371.0,0.001]
[1721312613181,0.09453783,64372.0,64371.0,0.001]
[1721312613446,0.07717479,64372.0,64371.0,0.001]
[1721312613684,0.09453783,64372.0,64371.0,0.001]
[1721312613941,0.56057883,64372.0,64371.0,0.001]
[1721312614184,1.18196683,64372.0,64371.0,0.001]
[1721312614637,0.87127283,64372.0,64371.0,0.001]
[1721312614870,0.94005911,64372.0,64371.0,0.001]
[1721312615123,0.06878628,64372.0,64371.0,0.001]
[1721312615372,0.06322318,64373.0,64371.0,0.001]
[1721312615619,0.06322318,64374.0,64371.0,0.001]
[1721312615797,0.01736304,64374.0,64371.0,0.001]
[1721312616014,0.001,64372.0,64371.0,0.001]
[1721312616691,0.001,64372.0,64370.0,0.155351]
[1721312616921,0.02436304,64372.0,64371.0,0.001]
[1721312617375,0.007,64372.0,64371.0,0.156349]
[1721312617848,0.007,64372.0,64371.0,0.001]
[1721312617849,0.02436304,64372.0,64371.0,0.001]
[1721312618089,0.01736304,64367.0,64366.0,0.15536]
[1721312618320,0.01736304,64362.0,64360.0,0.155373]
[1721312618584,0.01736304,64358.0,64355.0,0.310772]
[1721312618807,0.01736304,64359.0,64356.0,0.155384]
[1721312619033,0.23254579,64362.0,64357.0,0.155382]
[1721312619034,0.01736304,64360.0,64357.0,0.155382]
[1721312619319,0.01736304,64356.0,64352.0,0.155394]
[1721312619541,0.01736304,64360.0,64352.0,0.310786]
[1721312619768,0.01736304,64359.0,64354.0,0.155388]
[1721312619993,0.01736304,64359.0,64352.0,0.155392]
[1721312620222,0.310736,64364.0,64354.0,0.15438174]
[1721312620223,0.06320815,64364.0,64354.0,0.15438174]
[1721312620450,0.06320815,64364.0,64359.0,0.155378]
[1721312620451,0.07717479,64363.0,64359.0,0.155378]
[1721312620684,0.07717479,64363.0,64360.0,0.15438174]
[1721312620933,0.07717479,64363.0,64360.0,0.30975674]
[1721312621152,0.07717479,64366.0,64365.0,0.46609]
[1721312621383,0.04584511,64367.0,64365.0,0.15438174]
[1721312621644,0.04584511,64369.0,64366.0,0.46510174]
[1721312621935,0.04584511,64369.0,64368.0,0.155356]
[1721312622179,0.006,64372.0,64371.0,0.466047]
[1721312622399,0.006,64372.0,64371.0,0.62042874]
[1721312622656,0.01736304,64368.0,64363.0,0.310734]
[1721312622893,0.01736304,64366.0,64364.0,0.15438174]
[1721312623158,0.01736304,64365.0,64364.0,0.15438174]
[1721312623400,0.01736304,64353.0,64334.0,0.006225]
[1721312623653,0.01736304,64354.0,64350.0,0.155399]
[1721312623872,0.01736304,64356.0,64351.0,0.30977874]
[1721312624338,0.01736304,64356.0,64354.0,0.004]
[1721312624572,0.01736304,64355.0,64354.0,0.004]
[1721312624802,0.17275104,64355.0,64354.0,0.004]
[1721312625051,0.07717479,64360.0,64354.0,0.004]
[1721312625052,0.01736304,64356.0,64354.0,0.004]
[1721312625277,0.01736304,64356.0,64352.0,0.155393]
[1721312625526,0.01736304,64356.0,64353.0,0.15438174]
[1721312625784,0.01736304,64356.0,64353.0,0.31288126]
[1721312626045,0.04584627,64358.0,64357.0,0.155383]
[1721312626289,0.04582979,64364.0,64361.0,0.155372]
[1721312626526,0.01736304,64364.0,64362.0,0.15438174]
[1721312627222,0.01736304,64358.0,64356.0,0.155384]
[1721312627449,0.01736304,64353.0,64349.0,0.009185]
[1721312627677,0.07717479,64357.0,64349.0,0.009185]
[1721312627678,0.09453783,64350.0,64349.0,0.009185]
[1721312628227,0.07717479,64350.0,64349.0,0.16356674]
[1721312628926,0.155385,64356.0,64349.0,0.31896874]
[1721312628927,0.01736304,64356.0,64349.0,0.31896874]
[1721312629175,0.07717479,64357.0,64350.0,0.15438174]
[1721312629397,0.06319433,64359.0,64351.0,0.310793]
[1721312629619,0.29574612,64360.0,64352.0,0.31288319]
[1721312629836,0.29574612,64360.0,64353.0,0.155392]
[1721312630090,0.12300608,64360.0,64355.0,0.310772]
[1721312630353,0.07717479,64359.0,64357.0,0.310765]
[1721312630578,0.005,64364.0,64363.0,0.466105]
[1721312630802,0.005,64364.0,64363.0,0.30974974]
[1721312631478,0.005,64364.0,64363.0,0.40287461]
[1721312632191,0.02436304,64364.0,64363.0,0.15438174]
[1721312632446,0.02436304,64364.0,64358.0,0.155378]
[1721312632447,0.01736304,64361.0,64358.0,0.155378]
[1721312632656,0.01736304,64363.0,64359.0,0.15438174]
[1721312632879,0.01736304,64363.0,64359.0,0.15880685]
[1721312633330,0.07717479,64360.0,64359.0,0.15880685]
[1721312633551,0.01736304,64362.0,64359.0,0.15880685]
[1721312633781,0.01736304,64362.0,64359.0,0.22130314]
[1721312634230,0.002,64364.0,64359.0,0.22130314]
[1721312634231,0.006,64364.0,64361.0,0.155373]
[1721312634546,0.006,64364.0,64362.0,0.15438174]
[1721312634641,0.004,64364.0,64362.0,0.15880422]
[1721312635110,0.01736304,64366.0,64362.0,0.15880422]